Cogmind - Beta 16 @@@ ROGUE MODE // 2025.11.05 @ 20:04:08 Player: khaki-45e Result: Destroyed by S-10 Pest with Light Assault Rifle Performance ------------- Evolutions (1) 500 Regions Visited (2) 400 Robots Destroyed (32) 160 Value Destroyed (717) 717 Prototype IDs (4) 80 Alien Tech Used (0) 0 Bonus (0) 0 TOTAL SCORE: 1857 Bonus ------- None Cogmind --------- Core Integrity 0/400 Matter 250/300 Energy 99/100 System Corruption 0% Temperature Cool (12) Movement Core (100) Ox1 Location -9/Materials Parts ------- > --- POWER (1) -------- (None) > --- PROPULSION (3) --- (None) > --- UTILITY (3) ------ Small Storage Unit Hacking Suite > --- WEAPON (2) ------- (None) > --- INVENTORY (8) ---- Light Ion Engine Improved Heat Sink Sensor Array Seismic Detector ECM Suite Improved Light Armor Plating Medium Laser Particle Cannon Peak State ------------ > --- POWER ------------ Light Ion Engine > --- PROPULSION ------- Aluminum Leg Aluminum Leg Aluminum Leg > --- UTILITY ---------- Improved Heat Sink Small Storage Unit Hacking Suite > --- WEAPON ----------- Assault Rifle Heavy Assault Rifle > --- INVENTORY -------- Light Ion Engine Aluminum Leg Compact Wheel Sensor Array ECM Suite Improved Light Armor Plating Medium Laser Particle Cannon [Rating: 15] Favorites ----------- Power Light Ion Engine Engine Light Ion Engine Propulsion Aluminum Leg Leg Aluminum Leg Utility Small Storage Unit Device Improved Heat Sink Storage Small Storage Unit Processor Targeting Computer Hackware Hacking Suite Protection Improved Light Armor Plating Weapon Medium Laser Energy Gun Medium Laser Ballistic Gun Assault Rifle Launcher Grenade Launcher Build | -11 -10 -9 ------- Run | Yrd Mat Mat Slots Evolved 2 | . . 2 Power . | . . . Propulsion 1 | . . 1 Utility 1 | . . 1 Weapon . | . . . Parts Attached 20 | 6 8 6 Power 3 | 1 2 . Engine 3 | 1 2 . Core . | . . . Reactor . | . . . Propulsion 6 | 2 2 2 Treads . | . . . Leg 6 | 2 2 2 Wheel . | . . . Hover . | . . . Flight . | . . . Utility 7 | 1 3 3 Device 2 | . . 2 Storage 2 | 1 1 . Processor 1 | . 1 . Hackware 1 | . 1 . Protection 1 | . . 1 Artifact . | . . . Weapon 4 | 2 1 1 Energy Gun 1 | 1 . . Energy Cannon . | . . . Ballistic Gun 2 | 1 . 1 Ballistic Cannon . | . . . Launcher 1 | . 1 . Special Weapon . | . . . Impact Weapon . | . . . Slashing Weapon . | . . . Piercing Weapon . | . . . Special Melee Weapon . | . . . Unidentified Prototypes . | . . . Parts Lost 9 | . 2 7 Power 2 | . 1 1 Propulsion 3 | . . 3 Utility 1 | . . 1 Weapon 3 | . 1 2 Highest Loss Streak 7 | . 2 7 To Critical Strikes . | . . . Average Backups 5 | 1 5 6 Power 1 | . 1 1 Propulsion 1 | . 1 . Utility 2 | . 1 3 Weapon 1 | . . 1 Tool/Special . | . . . Unused Backups 7 | . 1 6 Power 2 | . 1 1 Propulsion 1 | . . 1 Utility 3 | . . 3 Weapon 1 | . . 1 Tool/Special . | . . . Average Slot Usage (%) 91 | . 90 91 Engine 12 | . 13 10 Leg 28 | . 27 29 Device 1 | . . 3 Storage 12 | . 14 11 Processor 3 | . 5 . Hackware 4 | . . 11 Protection 2 | . . 5 Energy Gun 9 | . 14 2 Ballistic Gun 8 | . 2 17 Launcher 6 | . 11 . Peak Build Rating 15 | 6 9 15 Average Rating 8 | 4 6 13 On Entrance 5 | . 6 9 Avg Prop Armor Cover (%) . | . . . Naked Turns . | . . . Heaviest Build 16 | 14 14 16 Greatest Support 30 | 20 20 30 Greatest Overweight (x) 4 | . 4 3 Average Overweight (x) . | . . . Largest Inventory Capacity 8 | 8 8 8 Average Capacity 7 | 7 8 8 Most Carried 8 | 5 8 8 Average Carried 5 | 1 5 6 Final Capacity 8 | 8 8 8 Final Carried 8 | 2 5 8 Class Distribution -------------------- 100% | Mutant Dominant Class ---------------- Mutant | -10/Materials Mutant | -9/Materials Resources | -11 -10 -9 ----------- Run | Yrd Mat Mat Matter Collected 633 | 206 237 190 Remotely . | . . . Salvage Created 627 | . 436 191 Parts 55 | . 44 11 Haulers Intercepted 2 | . 2 . Recyclers Shooed . | . . . Parts Field Recycled . | . . . Retrieved Matter . | . . . Parts Self-Destructed . | . . . Prevented . | . . . Parts Restored . | . . . Kills | -11 -10 -9 ------- Run | Yrd Mat Mat Combat Hostiles Destroyed 20 | . 16 4 Guns 9 | . 6 3 AOE 10 | . 10 . Classes Destroyed 8 | . 7 1 Builder 3 | . 3 . Tunneler 3 | . 2 1 Hauler 2 | . 2 . Operator 1 | . 1 . Watcher 3 | . 3 . Swarmer 6 | . 6 . Grunt 13 | . 10 3 Sentry 1 | . . 1 Best Kill Streak 9 | . 9 1 Combat Bots Only 7 | . 7 1 Max Kills in Single Turn 2 | . 2 1 Gunslinging . | . . . Exploded 2 | . 2 . Melee . | . . . Uniques/NPCs Destroyed . | . . . Combat | -11 -10 -9 -------- Run | Yrd Mat Mat Hostile Shots Fired 244 | . 54 190 Missed 96 | . 20 76 Hits 148 | . 34 114 Projectile 148 | . 34 114 Critical Strikes 2 | . 1 1 Damage Taken 1579 | . 385 1194 Core 503 | . 99 404 Absorbed by Shields . | . . . Core Remaining (%) 80 | 100 60 . Volleys Fired 83 | . 63 20 Largest 2 | . 2 2 Hottest 70 | . 70 70 Shots Fired 113 | . 73 40 Gun 87 | . 47 40 Cannon . | . . . Launcher 26 | . 26 . Special . | . . . Kinetic 42 | . 10 32 Thermal 45 | . 37 8 Explosive 26 | . 26 . Electromagnetic . | . . . Robot Hit Streak 6 | . 6 5 Robot Miss Streak 7 | . 7 2 Penetration Max . | . . . Secondary Targets 1 | . 1 . Max Gunslinging Chain 1 | . 1 . Shots Hit Robots 58 | . 31 27 Core Hits 50 | . 43 7 Critical Kills . | . . . Critical Parts Destroyed . | . . . Critical Strikes 2 | . . 2 Burn 2 | . . 2 Melee Attacks . | . . . Impact . | . . . Slashing . | . . . Piercing . | . . . Sneak Attacks . | . . . Combat Hostiles . | . . . Follow-up Attacks . | . . . Damage Inflicted 1948 | . 1563 385 Guns 690 | . 338 352 Cannons . | . . . Explosions 1223 | . 1223 . Melee . | . . . Ramming 35 | . 2 33 Kinetic 335 | . 73 262 Thermal 355 | . 265 90 Explosive 1223 | . 1223 . Electromagnetic . | . . . Impact . | . . . Slashing . | . . . Piercing . | . . . Highest Corruption . | . . . Average Corruption . | . . . Corruption Purged . | . . . Corruption Blocked . | . . . Overload Shots . | . . . Overflow Damage 2 | . 2 . Projectiles . | . . . Explosions 2 | . 2 . Melee . | . . . Knockbacks . | . . . Impact . | . . . Kinetic . | . . . Secondary . | . . . Self-Inflicted Damage 23 | . 22 1 Shots 1 | . 1 . Rammed 1 | . . 1 Targets Rammed 18 | . 2 16 Kicked 17 | . 2 15 Crushed . | . . . Highest Temperature 94 | . 94 45 Average Temperature 21 | . 20 25 Received Heat Transfer 468 | . 150 318 Siege Activations . | . . . Martial Activations . | . . . Shielding Activations . | . . . Robots Disrupted . | . . . Combat Hostiles . | . . . Robots Corrupted . | . . . Combat Hostiles . | . . . Parts Fried . | . . . Impact Corruptions . | . . . Robots Melted 1 | . . 1 Combat Hostiles 1 | . . 1 Parts Melted 3 | . 1 2 Heat Transferred 1184 | . 777 407 Parts Sabotaged . | . . . Parts Stolen . | . . . Parts Stripped . | . . . Power Chain Reactions . | . . . Alert | -11 -10 -9 ------- Run | Yrd Mat Mat Maximum Alert Level 1 | . 1 . Low Security (%) 55 | 100 23 100 Level 1 44 | . 76 . Level 2 . | . . . Level 3 . | . . . Level 4 . | . . . Level 5 . | . . . High Security . | . . . Max Security . | . . . Peak Influence 349 | . 349 144 Initial 133 | . . 133 Average 179 | . 244 105 Influence Increases 930 | . 669 261 Destroy 0b10 Robot/C 400 | . 320 80 Destroy 0b10 Robot/NC 60 | . 55 5 Destroy Leader 110 | . 70 40 Successful Hack 7 | . 7 . Disable Machine 60 | . 60 . Destroy Structure 143 | . 142 1 Partial Spotted 15 | . 15 . Lose Combat Pursuer 135 | . . 135 Influence Decreases 844 | . 352 492 Entered New Map 184 | . . 184 Time Decay 570 | . 332 238 Lost Part 90 | . 20 70 Squads Dispatched 8 | . 3 5 Investigation 3 | . 1 2 Extermination . | . . . Reinforcement 5 | . 2 3 Assault . | . . . Garrison . | . . . Intercept . | . . . Searches Triggered . | . . . Construction Impeded . | . . . Haulers Reinforced . | . . . Active Scanning Responses . | . . . Cargo Convoy Interrupts . | . . . Stealth | -11 -10 -9 --------- Run | Yrd Mat Mat Distress Signals 4 | . . 4 Communications Jammed . | . . . Distress Signals . | . . . Times Spotted 57 | . 25 32 Peak Tracking Total 16 | . 6 16 Tactical Retreats 4 | . . 4 Traps | -11 -10 -9 ------- Run | Yrd Mat Mat Traps Triggered 2 | . 1 1 Indirectly . | . . . Trap Hack Attempts . | . . . Triggered . | . . . Disarmed . | . . . Reprogrammed . | . . . Reused . | . . . Traps Extracted . | . . . Installed . | . . . Triggered . | . . . Machines | -11 -10 -9 ---------- Run | Yrd Mat Mat Machines Disabled 4 | . 4 . Max in Single Turn 2 | . 2 . Machines Repaired . | . . . Machines Dismantled . | . . . Machines Sabotaged . | . . . Overloaded Fab Kills . | . . . Hacking | -11 -10 -9 --------- Run | Yrd Mat Mat Machines Accessed 3 | . 1 2 Terminals 2 | . 1 1 Fabricators . | . . . Repair Stations . | . . . Recycling Units 1 | . . 1 Scanalyzers . | . . . Garrison Access . | . . . Total Hacks 8 | . 2 6 Successful 5 | . 2 3 Failed 3 | . . 3 Catastrophic . | . . . Database Lockouts . | . . . Manual . | . . . Terminals 5 | . 2 3 Fabricators . | . . . Repair Stations . | . . . Recycling Units 3 | . . 3 Scanalyzers . | . . . Garrison Access . | . . . Terminal Hacks 4 | . 2 2 Record 1 | . 1 . Prototype ID Bank 2 | . 1 1 Transport Status 1 | . . 1 Fabricator Hacks . | . . . Repair Station Hacks . | . . . Recycling Unit Hacks 1 | . . 1 Report Inventory 1 | . . 1 Scanalyzer . | . . . Garrison Access Hacks . | . . . Unauthorized Hacks . | . . . Terminals . | . . . Fabricators . | . . . Repair Stations . | . . . Recycling Units . | . . . Scanalyzers . | . . . Garrison Access . | . . . Data Cores Recovered . | . . . Used . | . . . Hacking Detections 2 | . . 2 Full Trace Events 1 | . . 1 Feedback Events . | . . . Feedback Blocked . | . . . Robot Schematics Acquired . | . . . Robots Built . | . . . Authchips . | . . . Time . | . . . Total Robot Build Rating . | . . . Part Schematics Acquired . | . . . Parts Built . | . . . Authchips . | . . . Time . | . . . Total Part Build Rating . | . . . Part Studies Acquired . | . . . Parts Repaired . | . . . Time . | . . . Parts Recycled . | . . . Recycled Matter . | . . . Retrieved Matter . | . . . Retrieved Components . | . . . Parts Scanalyzed . | . . . Part Schematics Acquired . | . . . Parts Damaged . | . . . Bothacking | -11 -10 -9 ------------ Run | Yrd Mat Mat Used RIF Installer . | . . . Robots Hacked . | . . . Non-combat . | . . . Combat . | . . . Robot Hacks Applied . | . . . Relay Couplers Released . | . . . Fabnet Peak Effective % . | . . . Robots Rewired . | . . . Allies Hacked . | . . . Hacks Repelled . | . . . Allies | -11 -10 -9 -------- Run | Yrd Mat Mat Total Allies . | . . . Largest Group . | . . . Highest-Rated Group . | . . . Highest-Rated Ally . | . . . Total Orders . | . . . Ally Attacks . | . . . Total Damage . | . . . Kills . | . . . Allies Corrupted . | . . . Allies Melted . | . . . Intel | -11 -10 -9 ------- Run | Yrd Mat Mat Active Infowar (turns) 56 | . . 56 ECM 56 | . . 56 Robot Analysis Total . | . . . Derelict Logs Recovered . | . . . Drone Launches . | . . . Drone Recoveries . | . . . Exploration | -11 -10 -9 ------------- Run | Yrd Mat Mat Turns Passed 1422 | 84 822 516 Spaces Moved 955 | 70 541 344 Core 44 | 19 2 23 Treads . | . . . Legs 911 | 51 539 321 Wheels . | . . . Hover . | . . . Flight . | . . . Fastest Speed 50 | 50 120 100 Average Speed 119 | 101 120 121 Slowest Speed 250 | 120 250 200 Overloaded Moves . | . . . Propulsion Burnouts . | . . . Robots Hopped . | . . . Potential Cave-ins . | . . . Cave-ins Triggered . | . . . Exploration Rate (%) 37 | 5 70 36 Regions Visited 2 Branch Regions . Pre-discovered Areas . | . . . Known Exits Taken . | . . . Unknown Exits Taken 2 | 1 1 . Scrap Searched . | . . . Spaces Dug . | . . . Terrain Destroyed 177 | . 177 . Melee . | . . . Projectile . | . . . AOE 177 | . 177 . Terrain Rammed . | . . . Walls Destroyed . | . . . Machines Disabled . | . . . Actions | -11 -10 -9 --------- Run | Yrd Mat Mat Total 1116 | 83 638 395 Wait 8 | 1 7 . Move 953 | 69 540 344 Hop . | . . . Pick Up 26 | 7 12 7 Fast Attach 1 | 1 . . Attach 12 | 5 5 2 Detach . | . . . Swap 8 | . 4 4 Drop 7 | . 5 2 Fire 83 | . 63 20 Melee . | . . . Ram 1 | . . 1 Kick 17 | . 2 15 Crush . | . . . Escape Stasis . | . . . Rewire . | . . . Trap . | . . . Miscellaneous . | . . . Route ------- -11/Scrapyard -10/Materials (discovered 5 exits: *Mat x3 / [*Min] / [*Sub]) -9/Materials (discovered 2 exits: [*Mat x2]) History --------- Turn | Location | Event 3 | -11/Scrapyard | Discovered new exit (range 15) 85 | -11/Scrapyard | Entered Materials 217 | -10/Materials | Destroyed 7 combat bots 304 | -10/Materials | Build established: Mutant 458 | -10/Materials | Discovered new exit (range 12) 510 | -10/Materials | Discovered new exit (range 3) 668 | -10/Materials | Discovered new exit (range 5) 684 | -10/Materials | Discovered new exit (range 15) 810 | -10/Materials | Discovered new exit (range 16) 907 | -10/Materials | Entered another Materials area 907 | -9/Materials | Evolved 2 slots: Propulsion x1, Utility x1 1115 | -9/Materials | Discovered new exit (range 16) 1407 | -9/Materials | Core integrity fell below 50% 1419 | -9/Materials | Discovered new exit (range 10) 1422 | -9/Materials | Core integrity fell below 20% 1423 | -9/Materials | Destroyed by S-10 Pest with Light Assault Rifle Last Messages --------------- Aluminum Leg destroyed. Kicked S-10 Pest out of the way. S-10 Pest destroyed. Kicked T-07 Excavator. T-07 Excavator sends out distress signal. Kicked A-02 Transporter out of the way. Kicked W-16 Scout out of the way. Kicked A-02 Transporter. Assault Rifle destroyed. Aluminum Leg destroyed. Kicked S-10 Pest. Aluminum Leg destroyed. W-16 Scout sends out distress signal. Slammed into S-10 Pest. Hvy. Assault Rifle destroyed. Imp. Light Armor Plating destroyed. ALERT: Hostiles spotted, dispatching reinforcements to Terminal M010. Lgt. Ion Engine destroyed. EXIT=FOUND Map ----- +----------------------------------------------------+ | ?????????????????????????????????? | | ?????????????????????????????????? | | ?????????????????????????????????? | | ?????????????????????????????????? | | ?????????????????????????????????? | | ?????????????????????????????????? | | ?????????????????????????????????? | | ?????????????????????????????????? | | ?????????????????????????????????? | | ?????????????????????????????????? | | ?????????????????????????????????? | | ?????????????????????????????????? | | ?????????????????????????????????? | | ?????????????????????????????????? | | ?????????????????????????????????? | | ?????????????????????????????????? | | ?????????????????????????????????? | | ???????????????????????######????? | | ???????????????????????# #????? | | ???????????????????????# g #????? | | ???????????????????????# #????? | | ???????????????????????+ #????? | | ???????????????????????# #????? | | ???????????????????????# #????? | | ????????################ #????? | | ????????# g @ #????? | | ????????# k #????? | | ????????# #????? | | ????????# gsg b #????? | | ????????## g s #????? | | ?????????# Y""" """ #????? | | ########## """""g """"" #????? | | # """"" """"" #????? | | T # """"" """"" #????? | | """ # """ """ #????? | | """ ! / #????? | | """ # #????? | | ####################????? | | #???????????????????????? | | #???????????????????????? | | #/########???????????????????????? | | #??????????????????????????????? | | #??????????????????????????????? | | #??????????????????????????????? | | #??????????????????????????????? | | #??????????????????????????????? | | #??????????????????????????????? | | #??????????????????????????????? | | #??????????????????????????????? | | #??????????????????????????????? | +----------------------------------------------------+ Best States ------------- Heat Dissipation 42 Energy Generation 10 Energy Capacity 250 Matter Stores 250 Matter Capacity 300 Sight Range 16 Terrain Scan Density 10 ECM Strength 1 Armor Coverage 150 Evasion (%) 55 Targeting Accuracy 5 Offensive Hacking 10 Item Schematics ----------------- None Robot Schematics ------------------ None Fabricated ------------ Nothing Repaired ---------- Nothing Studied --------- None Alien Tech Used ----------------- None Achievements -------------- None Challenges ------------ None Game ------ Seed PlasmaCarbideDisplacer Manual? 0 Play Time 00:18:12 Cumulative 8.1 hours Start 2025.11.05 @ 19:47:39 End 2025.11.05 @ 20:04:08 Sessions 1 Manual Loads 0 Difficulty Rogue Special Mode None Game No. 9 Rogue 9 Adventurer 0 Explorer 0 Win Type - Total 0 Types 0/0/0/0/0/0/0/0/0/0 Lore% 4 Gallery% 8 Achievement% 9 Wizard Run 0 Options --------- Layout 1 ASCII 0 Keyboard 0 Movement Mouse Keybinds 0 Fullscreen 1 Font 32/SmallcapsGlow Map View 50x35 Zoom Use 0% Tactical HUD 0 Map Filters NONE Filters NONE Steam 0 RUN: 494759a9-e074-497f-9c4b-5a62e51772a9